fUSD/lending_fUSD_20250506
["ID","MTS","AMOUNT","RATE_DAILY","PERIOD"]
[360054505,1746525039791,-503.02027122,0.0001988,2]
[360054506,1746525039801,-260.75,0.0001988,2]
[360054507,1746525039810,-450.0,0.0001988,2]
[360054508,1746525039819,-450.0,0.0001988,2]
[360054509,1746525039828,-450.0,0.0001988,2]
[360054510,1746525039838,-450.0,0.0001988,2]
[360054511,1746525039847,-465.62646919,0.0001988,2]
[360054512,1746525039857,-450.0,0.0001988,2]
[360054513,1746525039867,-456.13301314,0.0001988,2]
[360054514,1746525039876,-450.0,0.0001988,2]
[360054515,1746525039886,-450.0,0.0001988,2]
[360054516,1746525039896,-254.03558385,0.0001988,2]
[360054517,1746525039906,-450.0,0.0001988,2]
[360054518,1746525039916,-450.0,0.0001988,2]
[360054519,1746525039925,-450.0,0.0001988,2]
[360054520,1746525039935,-450.0,0.0001988,2]
[360054521,1746525039945,-505.2664995,0.0001988,2]
[360054522,1746525039954,-154.46767548,0.0001988,2]
[360054523,1746525039964,-154.46767548,0.00019884,2]
[360054524,1746525039973,-154.46767548,0.00019887,2]
[360054525,1746525039983,-16243.75559127,0.00019888,2]
[360054526,1746525039993,-450.0,0.00019888,2]
[360054527,1746525040002,-516.87979228,0.00019888,2]
[360054528,1746525040012,-450.0,0.00019888,2]
[360054529,1746525040021,-450.0,0.00019888,2]
[360054530,1746525040030,-397.71998029,0.00019888,2]
[360054531,1746525040039,-450.0,0.00019888,2]
[360054532,1746525040049,-450.0,0.00019888,2]
[360054533,1746525040058,-450.0,0.00019888,2]
[360054534,1746525040068,-450.0,0.00019888,2]
[360054535,1746525040077,-453.13,0.00019888,2]
[360054536,1746525040087,-2946.86,0.00019888,2]
[360054537,1746525040096,-337.04891774,0.00019889,2]
[360054538,1746525040105,-164.81,0.00019889,2]
[360054539,1746525040114,-164.81,0.0001989,2]
[360054540,1746525040123,-164.81,0.0001989,2]
[360054541,1746525040133,-154.46767548,0.0001989,2]
[360054542,1746525040142,-154.46767548,0.00019893,2]
[360054543,1746525040152,-154.46767548,0.00019897,2]
[360054544,1746525040163,-392.38518788,0.00019899,2]
[360054545,1746525040174,-450.0,0.00019899,2]
[360054546,1746525040183,-450.0,0.00019899,2]
[360054547,1746525040192,-450.0,0.00019899,2]
[360054548,1746525040201,-265.43851512,0.00019899,2]
[360054549,1746525040211,-345.38333007,0.00019899,2]
[360054550,1746525040220,-450.0,0.00019899,2]
[360054551,1746525040230,-450.0,0.00019899,2]
[360054552,1746525040239,-450.0,0.00019899,2]
[360054553,1746525040249,-450.0,0.00019899,2]
[360054555,1746525040259,-512.46,0.00019899,2]
[360054556,1746525040268,-450.0,0.00019899,2]
[360054557,1746525040277,-450.0,0.00019899,2]
[360054558,1746525040287,-465.914,0.00019899,2]
[360054559,1746525040296,-603.74,0.00019899,2]
[360054560,1746525040305,-450.0,0.00019899,2]
[360054561,1746525040314,-450.0,0.00019899,2]
[360054562,1746525040323,-364.91055873,0.00019899,2]
[360054563,1746525040332,-450.0,0.00019899,2]
[360054564,1746525040341,-450.0,0.00019899,2]
[360054565,1746525040351,-450.0,0.00019899,2]
[360054566,1746525040360,-450.0,0.00019899,2]
[360054567,1746525040369,-450.0,0.00019899,2]
[360054568,1746525040378,-450.0,0.00019899,2]
[360054569,1746525040387,-450.0,0.00019899,2]
[360054570,1746525040396,-450.0,0.00019899,2]
[360054571,1746525040406,-8447.64,0.00019899,2]
[360054573,1746525040416,-450.0,0.00019899,2]
[360054575,1746525040425,-450.0,0.00019899,2]
[360054576,1746525040435,-450.0,0.00019899,2]
[360054577,1746525040444,-450.0,0.00019899,2]
[360054578,1746525040453,-511.27,0.00019899,2]
[360054579,1746525040463,-450.0,0.00019899,2]
[360054580,1746525040472,-1533.89,0.00019899,2]
[360054581,1746525040482,-350.07,0.00019899,2]
[360054582,1746525040491,-450.0,0.00019899,2]
[360054583,1746525040503,-450.0,0.00019899,2]
[360054584,1746525040512,-994.97,0.00019899,2]
[360054585,1746525040522,-450.0,0.00019899,2]
[360054586,1746525040531,-450.0,0.00019899,2]
[360054587,1746525040540,-450.0,0.00019899,2]
[360054588,1746525040550,-314.12977317,0.00019899,2]
[360054589,1746525040559,-450.0,0.00019899,2]
[360054590,1746525040568,-153.75177,0.000199,2]
[360054591,1746525040578,-156.820335,0.000199,2]
[360054592,1746525040587,-156.820335,0.000199,2]
[360054593,1746525040597,-151.0,0.000199,2]
[360054594,1746525040606,-273.676215,0.000199,2]
[360054595,1746525040615,-155.399877,0.000199,2]
[360054596,1746525040624,-151.0,0.000199,2]
[360054597,1746525040633,-151.0,0.000199,2]
[360054598,1746525040643,-590.092865,0.000199,2]
[360054599,1746525040652,-590.092865,0.000199,2]
[360054600,1746525040662,-12500.0,0.000199,2]
[360054601,1746525040671,-225.4739496,0.000199,2]
[360054602,1746525040681,-337.04891774,0.000199,2]
[360054603,1746525040690,-154.46767548,0.000199,2]
[360054604,1746525040699,-10449.91452732,0.000199,2]
[360054605,1746525040708,-2231.93400728,0.000199,2]
[360054606,1746525040718,-1116.84957933,0.000199,2]
[360054607,1746525040727,-16243.75559127,0.000199,2]
[360054608,1746525040737,-156.820335,0.00019967,2]
[360054609,1746525040747,-156.820335,0.00019967,2]
[360054610,1746525040756,-151.0,0.00019967,2]
[360054611,1746525040766,-151.0,0.00019967,2]
[360054612,1746525040775,-151.0,0.00019967,2]
[360054613,1746525040785,-590.092865,0.00019967,2]
[360054614,1746525040795,-590.092865,0.00019967,2]
[360054615,1746525040804,-450.0,0.00019972,2]
[360054616,1746525040814,-450.0,0.00019972,2]
[360054617,1746525040824,-450.0,0.00019972,2]
[360054618,1746525040835,-450.0,0.00019972,2]
[360054619,1746525040846,-603.74,0.00019972,2]
[360054620,1746525040855,-450.0,0.00019972,2]
[360054621,1746525040865,-154.23100083,0.00019972,2]
[360054622,1746525040875,-450.0,0.00019972,2]
[360054623,1746525040885,-450.0,0.00019972,2]
[360054624,1746525040894,-450.0,0.00019972,2]
[360054625,1746525040903,-257.35457538,0.00019972,2]
[360054626,1746525040913,-450.0,0.00019972,2]
[360054627,1746525040922,-500.0,0.00019973,2]
[360054628,1746525040932,-500.0,0.00019973,2]
[360054629,1746525040941,-500.0,0.00019973,2]
[360054630,1746525040951,-500.0,0.00019973,2]
[360054631,1746525040959,-150.0,0.00019973,2]
[360054632,1746525040969,-258.3629255,0.00019974,2]
[360054633,1746525040979,-500.0,0.00019974,2]
[360054634,1746525040988,-500.0,0.00019974,2]
[360054635,1746525040997,-500.0,0.00019974,2]
[360054636,1746525041006,-500.0,0.00019974,2]
[360054637,1746525041016,-643.53388965,0.00019974,2]
[360054638,1746525041025,-505.32945559,0.00019975,2]
[360054639,1746525041061,-365.75454148,0.00019852,2]
[360054640,1746525041072,-134.24545852,0.00019852,2]
[360054641,1746525041082,-500.0,0.00019852,2]
[360054642,1746525041092,-87.64054441,0.00019975,2]
[360054643,1746525041101,-1138.0,0.00019975,2]
[360054644,1746525041110,-441.533,0.00019975,2]
[360054645,1746525041119,-456.6331272,0.00019975,2]
[360054646,1746525041395,-607.04830191,0.00019777,2]
[360054647,1746525041404,-500.0,0.00019852,2]
[360054648,1746525041415,-500.0,0.00019852,2]
[360054649,1746525041424,-354.9783668,0.00019852,2]
[360054650,1746525041435,-145.0216332,0.00019852,2]
[360054651,1746525041444,-500.0,0.00019852,2]
[360054652,1746525041453,-500.0,0.00019852,2]
[360054653,1746525041463,-500.0,0.00019852,2]
[360054654,1746525041471,-500.0,0.00019852,2]
[360054655,1746525041480,-500.0,0.00019852,2]
[360054656,1746525041489,-21.1783668,0.00019852,2]
[360054657,1746525041503,-478.8216332,0.00019852,2]
[360054658,1746525041512,-500.0,0.00019852,2]
[360054659,1746525041521,-500.0,0.00019852,2]
[360054660,1746525041530,-500.0,0.00019852,2]
[360054661,1746525041541,-500.0,0.00019852,2]
[360054662,1746525041550,-500.0,0.00019852,2]
[360054663,1746525041559,-500.0,0.00019852,2]
[360054664,1746525041568,-500.0,0.00019852,2]
[360054665,1746525041579,-454.88946519,0.00019879,2]
[360054666,1746525041588,-467.50197408,0.00019879,2]
[360054667,1746525041597,-466.80880273,0.00019879,2]
[360054668,1746525041607,-6307.3668728,0.00019975,2]
[360054669,1746525041615,-242.0,0.00019975,2]
[360054670,1746525041624,-150.0,0.00019975,2]
[360054671,1746525041634,-878.0,0.00019975,2]
[360054672,1746525041643,-167.351,0.00019975,2]
[360054673,1746525041652,-189.648,0.00019975,2]
[360054674,1746525041662,-250.183,0.00019975,2]
[360054675,1746525041673,-4015.0,0.00019975,2]
[360054676,1746525041683,-156.791,0.00019975,2]
[360054677,1746525041691,-879.0,0.00019975,2]
[360054678,1746525041831,-450.0,0.00019975,2]
[360054679,1746525041842,-450.0,0.00019975,2]
[360054680,1746525041851,-504.35589026,0.00019975,2]
[360054681,1746525041860,-1006.97,0.00019975,2]
[360054682,1746525041869,-482.25576652,0.00019975,2]
[360054683,1746525041879,-509.30939956,0.00019975,2]
[360054684,1746525041888,-450.0,0.00019975,2]
[360054685,1746525041897,-554.11084385,0.00019975,2]
[360054686,1746525041907,-450.0,0.00019975,2]
[360054687,1746525041918,-329.84,0.00019975,2]
[360054688,1746525041928,-450.0,0.00019975,2]
[360054689,1746525041937,-450.0,0.00019975,2]
[360054690,1746525041947,-450.0,0.00019975,2]
[360054691,1746525041956,-519.53719311,0.00019975,2]
[360054692,1746525041965,-458.19467588,0.00019975,2]
[360054693,1746525041974,-450.0,0.00019975,2]
[360054694,1746525041984,-177.00135766,0.00019975,2]
[360054695,1746525041993,-450.0,0.00019975,2]
[360054696,1746525042002,-520.28092424,0.00019975,2]
[360054697,1746525042011,-524.14694293,0.00019975,2]
[360054698,1746525042019,-450.0,0.00019975,2]
[360054699,1746525042028,-198.6964292,0.00019975,2]
[360054700,1746525042198,-258.8135708,0.00019975,2]
[360054701,1746525042207,-538.92,0.00019975,2]
[360054702,1746525042216,-450.0,0.00019975,2]
[360054703,1746525042225,-504.00115438,0.00019975,2]
[360054704,1746525042234,-450.0,0.00019975,2]
[360054705,1746525042243,-450.0,0.00019975,2]
[360054706,1746525042252,-460.68761893,0.00019975,2]
[360054707,1746525042262,-475.622608,0.00019975,2]
[360054708,1746525042271,-450.0,0.00019975,2]
[360054709,1746525042280,-450.0,0.00019975,2]
[360054710,1746525042289,-502.24050552,0.00019975,2]
[360054711,1746525042298,-450.0,0.00019975,2]
[360054712,1746525042307,-450.0,0.00019975,2]
[360054713,1746525042316,-450.0,0.00019975,2]
[360054714,1746525042325,-450.0,0.00019975,2]
[360054715,1746525042335,-450.0,0.00019975,2]
[360054716,1746525042344,-450.0,0.00019975,2]
[360054717,1746525042353,-471.97920847,0.00019975,2]
[360054718,1746525042362,-553.11519015,0.00019975,2]
[360054719,1746525042371,-512.62556938,0.00019975,2]
[360054720,1746525042380,-450.0,0.00019975,2]
[360054721,1746525042389,-8311.99457437,0.00019975,2]
[360054722,1746525042401,-331.07,0.00019975,2]
[360054723,1746525042427,-305.0000025,0.00019879,2]
[360054724,1746525042440,-149.36226007,0.00019879,2]
[360054725,1746525042449,-873.30542563,0.00019975,2]
[360054726,1746525042461,-290.7018184,0.00019975,2]
[360054727,1746525042470,-450.0,0.00019975,2]
[360054728,1746525042480,-574.8131711,0.00019975,2]
[360054729,1746525042489,-498.96603662,0.00019975,2]
[360054730,1746525042500,-450.0,0.00019975,2]
[360054731,1746525042510,-529.5586135,0.00019975,2]
[360054732,1746525042519,-504.45785469,0.00019975,2]
[360054733,1746525042530,-450.0,0.00019975,2]
[360054734,1746525042539,-523.25904852,0.00019975,2]
[360054735,1746525042548,-450.0,0.00019975,2]
[360054736,1746525042558,-450.0,0.00019975,2]
[360054737,1746525042567,-450.0,0.00019975,2]
[360054738,1746525042576,-450.0,0.00019975,2]
[360054739,1746525042587,-450.0,0.00019975,2]
[360054740,1746525042595,-450.0,0.00019975,2]
[360054741,1746525042604,-450.0,0.00019975,2]
[360054742,1746525042613,-450.0,0.00019975,2]
[360054743,1746525042622,-253.99153518,0.00019975,2]
[360054744,1746525042631,-450.0,0.00019975,2]
[360054745,1746525042641,-156.820335,0.00019976,2]
[360054746,1746525042651,-156.820335,0.00019976,2]
[360054747,1746525042660,-215.635441,0.00019976,2]
[360054748,1746525042670,-3033.453,0.00019976,2]
[360054749,1746525042679,-191.026,0.00019976,2]
[360054750,1746525042689,-450.0,0.00019977,2]
[360054751,1746525042698,-214.47,0.00019977,2]
[360054752,1746525042707,-450.0,0.00019977,2]
[360054753,1746525042715,-445.65,0.00019977,2]
[360054754,1746525042724,-363.34,0.00019977,2]
[360054755,1746525042733,-603.74,0.00019977,2]
[360054756,1746525042743,-597.43324606,0.00019977,2]
[360054757,1746525042752,-483.99,0.00019977,2]
[360054758,1746525042761,-450.0,0.00019977,2]
[360054759,1746525042770,-573.32,0.00019977,2]
[360054760,1746525042779,-450.0,0.00019977,2]
[360054761,1746525042788,-156.820335,0.00019979,2]
[360054762,1746525042797,-156.820335,0.00019979,2]
[360054763,1746525042806,-151.0,0.00019979,2]
[360054764,1746525042815,-151.0,0.00019979,2]
[360054765,1746525042825,-590.092865,0.00019979,2]
[360054766,1746525042834,-590.092865,0.00019979,2]
[360054767,1746525042844,-450.0,0.00019983,2]
[360054768,1746525042853,-450.0,0.00019983,2]
[360054769,1746525042862,-450.0,0.00019983,2]
[360054770,1746525042871,-544.29,0.00019983,2]
[360054771,1746525042880,-450.0,0.00019983,2]
[360054772,1746525042889,-450.0,0.00019983,2]
[360054773,1746525042898,-450.0,0.00019984,2]
[360054774,1746525042907,-450.0,0.00019984,2]
[360054775,1746525042916,-450.0,0.00019984,2]
[360054776,1746525042926,-450.0,0.00019984,2]
[360054777,1746525042935,-450.0,0.00019984,2]
[360054778,1746525042944,-8447.64,0.00019984,2]
[360054779,1746525042953,-450.0,0.00019984,2]
[360054780,1746525042962,-511.27,0.00019984,2]
[360054781,1746525042971,-450.0,0.00019984,2]
[360054782,1746525042980,-1533.89,0.00019984,2]
[360054783,1746525042989,-450.0,0.00019984,2]
[360054784,1746525042998,-450.0,0.00019984,2]
[360054785,1746525043007,-495.16,0.00019984,2]
[360054786,1746525043016,-994.97,0.00019984,2]
[360054787,1746525043025,-474.90184557,0.00019984,2]
[360054788,1746525043034,-450.0,0.00019984,2]
[360054789,1746525043043,-458.74777994,0.00019984,2]
[360054790,1746525043052,-450.0,0.00019984,2]
[360054791,1746525043061,-323.25,0.00019984,2]
[360054792,1746525043072,-450.0,0.00019984,2]
[360054793,1746525043082,-450.0,0.00019984,2]
[360054794,1746525043090,-333.73471945,0.00019984,2]
[360054795,1746525043099,-450.0,0.00019984,2]
[360054796,1746525043108,-450.0,0.00019984,2]
[360054797,1746525043117,-470.18,0.00019984,2]
[360054798,1746525043127,-151.45907048,0.00019984,2]
[360054799,1746525043136,-486.52973085,0.00019984,2]
[360054800,1746525043145,-450.0,0.00019984,2]
[360054801,1746525043154,-161.26057408,0.00019984,2]
[360054802,1746525043163,-450.0,0.00019984,2]
[360054803,1746525043173,-450.0,0.00019984,2]
[360054804,1746525043182,-453.13,0.00019984,2]
[360054805,1746525043191,-2946.86,0.00019984,2]
[360054806,1746525043200,-450.0,0.00019985,2]
[360054807,1746525043209,-450.0,0.00019985,2]
[360054808,1746525043219,-450.0,0.00019985,2]
[360054809,1746525043228,-450.0,0.00019985,2]
[360054810,1746525043237,-450.0,0.00019985,2]
[360054811,1746525043246,-450.0,0.00019985,2]
[360054812,1746525043255,-450.0,0.00019985,2]
[360054813,1746525043264,-450.0,0.00019985,2]
[360054814,1746525043274,-603.74,0.00019985,2]
[360054815,1746525043283,-603.74,0.00019985,2]
[360054816,1746525043292,-603.74,0.00019985,2]
[360054817,1746525043302,-603.74,0.00019985,2]
[360054818,1746525043311,-450.0,0.00019985,2]
[360054819,1746525043321,-450.0,0.00019985,2]
[360054820,1746525043330,-450.0,0.00019985,2]
[360054821,1746525043339,-235.40786114,0.00019985,2]
[360054822,1746525043348,-309.39,0.00019985,2]
[360054823,1746525043358,-156.820335,0.00019986,2]
[360054824,1746525043367,-156.820335,0.00019986,2]
[360054825,1746525043376,-156.820335,0.00019986,2]
[360054826,1746525043385,-156.820335,0.00019986,2]
[360054827,1746525043395,-156.820335,0.00019986,2]
[360054828,1746525043404,-156.820335,0.00019986,2]
[360054829,1746525043413,-151.0,0.00019986,2]
[360054830,1746525043422,-151.0,0.00019986,2]
[360054831,1746525043433,-151.0,0.00019986,2]
[360054832,1746525043442,-151.0,0.00019986,2]
[360054833,1746525043451,-151.0,0.00019986,2]
[360054834,1746525043460,-151.0,0.00019986,2]
[360054835,1746525043469,-151.0,0.00019986,2]
[360054836,1746525043478,-166.830598,0.00019986,2]
[360054837,1746525043487,-590.092865,0.00019986,2]
[360054838,1746525043497,-590.092865,0.00019986,2]
[360054839,1746525043509,-590.092865,0.00019986,2]
[360054840,1746525043519,-590.092865,0.00019986,2]
[360054841,1746525043528,-590.092865,0.00019986,2]
[360054842,1746525043538,-590.092865,0.00019986,2]
[360054843,1746525043548,-3998.5762227,0.00019986,2]
[360054844,1746525043558,-1000.0,0.00019996,2]
[360054845,1746525043567,-164.15131995,0.00019997,2]
[360054846,1746525043577,-450.0,0.00019997,2]
[360054847,1746525043586,-562.84266766,0.00019997,2]
[360054848,1746525043595,-1006.97,0.00019997,2]
[360054849,1746525043604,-450.0,0.00019997,2]
[360054850,1746525043613,-216.05,0.00019997,2]
[360054851,1746525043622,-450.0,0.00019997,2]
[360054852,1746525043631,-603.74,0.00019997,2]
[360054853,1746525043640,-450.0,0.00019997,2]
[360054854,1746525043649,-450.0,0.00019997,2]
[360054855,1746525043658,-450.0,0.00019997,2]
[360054856,1746525043668,-9516.37,0.00019997,2]
[360054857,1746525043677,-550.56,0.00019997,2]
[360054858,1746525043686,-324.19631248,0.00019997,2]
[360054859,1746525043695,-450.0,0.00019997,2]
[360054860,1746525043704,-456.47,0.00019997,2]
[360054861,1746525043713,-450.0,0.00019997,2]
[360054862,1746525043722,-450.0,0.00019997,2]
[360054863,1746525043731,-288.40189223,0.00019997,2]
[360054864,1746525043740,-450.0,0.00019997,2]
[360054865,1746525043749,-450.0,0.00019997,2]
[360054866,1746525043758,-450.0,0.00019997,2]
[360054867,1746525043767,-450.0,0.00019997,2]
[360054868,1746525043776,-450.0,0.00019997,2]
[360054869,1746525043785,-156.095036,0.00019998,2]
[360054870,1746525043794,-160.289718,0.00019998,2]
[360054871,1746525043803,-540.187369,0.00019998,2]
[360054872,1746525043811,-540.187369,0.00019998,2]
[360054873,1746525043821,-158.999547,0.00019998,2]
[360054874,1746525043830,-156.820335,0.00019998,2]
[360054875,1746525043838,-156.820335,0.00019998,2]
[360054876,1746525043847,-151.0,0.00019998,2]
[360054877,1746525043856,-151.0,0.00019998,2]
[360054878,1746525043865,-590.092865,0.00019998,2]
[360054879,1746525043876,-590.092865,0.00019998,2]
[360054880,1746525043886,-1931.31916253,0.00019998,2]
[360054881,1746525043895,-157.2538262,0.00019998,2]
[360054882,1746525043904,-450.0,0.00019998,2]
[360054883,1746525043913,-450.0,0.00019998,2]
[360054884,1746525043922,-200.0,0.00019998,2]
[360054885,1746525043932,-1006.97,0.00019998,2]
[360054886,1746525043941,-1006.97,0.00019998,2]
[360054887,1746525043950,-450.0,0.00019998,2]
[360054888,1746525043959,-450.0,0.00019998,2]
[360054889,1746525043968,-152.55,0.00019998,2]
[360054890,1746525043977,-603.74,0.00019998,2]
[360054891,1746525043987,-603.74,0.00019998,2]
[360054892,1746525043996,-450.0,0.00019998,2]
[360054893,1746525044005,-450.0,0.00019998,2]
[360054894,1746525044014,-450.0,0.00019998,2]
[360054895,1746525044023,-450.0,0.00019998,2]
[360054896,1746525044032,-450.0,0.00019998,2]
[360054897,1746525044040,-450.0,0.00019998,2]
[360054898,1746525044049,-450.0,0.00019998,2]
[360054899,1746525044058,-450.0,0.00019998,2]
[360054900,1746525044067,-8447.64,0.00019998,2]
[360054901,1746525044076,-8447.64,0.00019998,2]
[360054902,1746525044086,-450.0,0.00019998,2]
[360054903,1746525044095,-450.0,0.00019998,2]
[360054904,1746525044103,-450.0,0.00019998,2]
[360054905,1746525044113,-298.95880043,0.00019998,2]
[360054906,1746525044122,-511.27,0.00019998,2]
[360054907,1746525044131,-511.27,0.00019998,2]
[360054908,1746525044139,-450.0,0.00019998,2]
[360054909,1746525044148,-450.0,0.00019998,2]
[360054910,1746525044157,-1533.89,0.00019998,2]
[360054911,1746525044167,-1533.89,0.00019998,2]
[360054912,1746525044175,-450.0,0.00019998,2]
[360054913,1746525044184,-535.84,0.00019998,2]
[360054914,1746525044194,-450.0,0.00019998,2]
[360054915,1746525044203,-450.0,0.00019998,2]
[360054916,1746525044212,-994.97,0.00019998,2]
[360054917,1746525044221,-994.97,0.00019998,2]
[360054918,1746525044230,-9516.37,0.00019998,2]
[360054919,1746525044239,-9516.37,0.00019998,2]
[360054920,1746525044248,-500.0,0.00019998,2]
[360054921,1746525044257,-150.0,0.00019998,2]
[360054922,1746525044267,-450.0,0.00019998,2]
[360054923,1746525044276,-450.0,0.00019998,2]
[360054924,1746525044286,-150.0,0.00019998,2]
[360054925,1746525044295,-450.0,0.00019998,2]
[360054926,1746525044304,-235.69372707,0.00019998,2]
[360054927,1746525044314,-450.0,0.00019998,2]
[360054928,1746525044324,-450.0,0.00019998,2]
[360054929,1746525044334,-450.0,0.00019998,2]
[360054930,1746525044343,-450.0,0.00019998,2]
[360054931,1746525044352,-450.0,0.00019998,2]
[360054932,1746525044362,-150.0,0.00019998,2]
[360054933,1746525044371,-450.0,0.00019998,2]
[360054934,1746525044380,-450.0,0.00019998,2]
[360054935,1746525044389,-582.0,0.00019998,2]
[360054936,1746525044399,-450.0,0.00019998,2]
[360054937,1746525044408,-450.0,0.00019998,2]
[360054938,1746525044418,-450.0,0.00019998,2]
[360054939,1746525044427,-450.0,0.00019998,2]
[360054940,1746525044436,-450.0,0.00019998,2]
[360054941,1746525044445,-450.0,0.00019998,2]
[360054942,1746525044454,-548.43766509,0.00019998,2]
[360054943,1746525044462,-450.0,0.00019998,2]
[360054944,1746525044471,-450.0,0.00019998,2]
[360054945,1746525044480,-161.32891104,0.00019998,2]
[360054946,1746525044489,-267.47,0.00019998,2]
[360054947,1746525044499,-544.29,0.00019998,2]
[360054948,1746525044511,-544.29,0.00019998,2]
[360054949,1746525044519,-544.29,0.00019998,2]
[360054950,1746525044528,-450.0,0.00019998,2]
[360054951,1746525044537,-450.0,0.00019998,2]
[360054952,1746525044547,-231.44413609,0.00019998,2]
[360054953,1746525044556,-450.0,0.00019998,2]
[360054954,1746525044565,-450.0,0.00019998,2]
[360054955,1746525044574,-450.0,0.00019998,2]
[360054956,1746525044583,-450.0,0.00019998,2]
[360054957,1746525044593,-453.13,0.00019998,2]
[360054958,1746525044602,-453.13,0.00019998,2]
[360054959,1746525044611,-450.0,0.00019998,2]
[360054960,1746525044746,-450.0,0.00019998,2]
[360054961,1746525044755,-450.0,0.00019998,2]
[360054962,1746525044764,-450.0,0.00019998,2]
[360054963,1746525044773,-450.0,0.00019998,2]
[360054964,1746525044782,-450.0,0.00019998,2]
[360054965,1746525044791,-2946.86,0.00019998,2]
[360054966,1746525044800,-2946.86,0.00019998,2]
[360054967,1746525044809,-450.0,0.00019998,2]
[360054968,1746525044818,-450.0,0.00019998,2]
[360054969,1746525044827,-450.0,0.00019998,2]
[360054970,1746525044837,-450.0,0.00019998,2]
[360054971,1746525044846,-450.0,0.00019998,2]
[360054972,1746525044855,-1189.0,0.00019999,2]
[360054973,1746525044865,-500.0,0.00019999,2]
[360054974,1746525044874,-500.0,0.00019999,2]
[360054975,1746525044883,-500.0,0.00019999,2]
[360054976,1746525044893,-300.0,0.00019999,2]
[360054977,1746525044902,-2000.0,0.00019999,7]
[360054978,1746525044911,-151.0,0.00019999,2]
[360054979,1746525044920,-151.0,0.00019999,2]
[360054980,1746525044929,-151.0,0.00019999,2]
[360054981,1746525044938,-151.0,0.00019999,2]
[360054982,1746525044947,-151.0,0.00019999,2]
[360054983,1746525044956,-151.0,0.00019999,2]
[360054984,1746525044965,-276.132514,0.00019999,2]
[360054985,1746525044975,-151.0,0.00019999,2]
[360054986,1746525044983,-151.0,0.00019999,2]
[360054987,1746525044993,-279.776068,0.00019999,2]
[360054988,1746525045002,-151.0,0.00019999,2]
[360054989,1746525045011,-243.257308,0.00019999,2]
[360054990,1746525045020,-151.877841,0.00019999,2]
[360054991,1746525045029,-151.0,0.00019999,2]
[360054992,1746525045038,-151.0,0.00019999,2]
[360054993,1746525045047,-225.375889,0.00019999,2]
[360054994,1746525045056,-151.0,0.00019999,2]
[360054995,1746525045066,-151.0,0.00019999,2]
[360054996,1746525045075,-151.0,0.00019999,2]
[360054997,1746525045084,-151.0,0.00019999,2]
[360054998,1746525045093,-151.0,0.00019999,2]
[360054999,1746525045103,-151.0,0.00019999,2]
[360055000,1746525045112,-151.0,0.00019999,2]
[360055001,1746525045122,-151.0,0.00019999,2]
[360055002,1746525045131,-151.0,0.00019999,2]
[360055003,1746525045141,-159.510026,0.00019999,2]
[360055004,1746525045150,-7694.48426457,0.00019999,2]
[360055005,1746525045160,-11049.31232301,0.00019999,2]
[360055006,1746525045171,-540.187369,0.00019999,2]
[360055007,1746525045180,-540.187369,0.00019999,2]